bitfinex-derivatives/quotes_BTCF0:USTF0_20250822
["timestamp","ask_amount","ask_price","bid_price","bid_amount"]
[1755870932142,0.98535,112580.0,112570.0,0.08161]
[1755870932341,1.65538361,112580.0,112570.0,0.28735]
[1755870932533,0.98535,112580.0,112570.0,0.03735]
[1755870932739,1.92587026,112580.0,112570.0,0.00024]
[1755870933046,2.01909587,112580.0,112570.0,0.00024]
[1755870933242,0.05184,112570.0,112540.0,0.05912]
[1755870933446,0.74486361,112550.0,112540.0,0.11466]
[1755870933740,0.7646884,112550.0,112540.0,0.03711]
[1755870933940,0.07383,112540.0,112530.0,0.05912]
[1755870934147,1.74716762,112540.0,112530.0,0.03711]
[1755870934742,1.74712762,112540.0,112530.0,0.03711]
[1755870934937,0.16581401,112540.0,112530.0,0.11466]
[1755870935444,0.16581401,112540.0,112530.0,0.11566]
[1755870935445,0.16881401,112540.0,112530.0,0.11566]
[1755870935751,0.16881401,112540.0,112530.0,0.06016]
[1755870935947,0.16881401,112540.0,112530.0,0.09369]
[1755870936149,0.16881401,112540.0,112530.0,0.1157]
[1755870936342,1.18518557,112540.0,112530.0,0.00104]
[1755870936542,1.18318557,112540.0,112530.0,0.00124]
[1755870937451,1.68318557,112540.0,112530.0,0.00124]
[1755870937956,2.59342557,112540.0,112530.0,0.00124]
[1755870938147,0.01897,112520.0,112510.0,0.11466]
[1755870938345,0.72538361,112520.0,112510.0,0.11466]
[1755870938552,0.7580584,112520.0,112510.0,0.11466]
[1755870938849,0.7580584,112520.0,112510.0,0.08137]
[1755870939151,0.7580584,112520.0,112510.0,0.11466]
[1755870939557,0.01185,112510.0,112500.0,0.04426]
[1755870940048,0.0672,112510.0,112500.0,0.29426]
[1755870940245,0.73723361,112510.0,112500.0,0.36466]
[1755870940446,0.7609398,112510.0,112500.0,0.3647]
[1755870940754,0.7609398,112510.0,112500.0,0.09269]
[1755870940942,0.09090619,112510.0,112500.0,0.03715]
[1755870941145,0.11161252,112510.0,112500.0,0.0594]
[1755870941344,0.09090619,112510.0,112500.0,0.1159]
[1755870941750,0.02370619,112510.0,112500.0,0.3659]
[1755870941960,0.01185,112520.0,112500.0,0.3659]
[1755870942145,0.002,112510.0,112500.0,0.02349]
[1755870942743,0.002,112510.0,112500.0,0.1159]
[1755870942948,0.002,112510.0,112500.0,1.12563441]
[1755870943143,0.002,112510.0,112500.0,1.03673361]
[1755870943348,0.002,112510.0,112500.0,0.3659]
[1755870943743,0.002,112510.0,112500.0,1.03593361]
[1755870944643,0.002,112510.0,112500.0,1.12463441]
[1755870944956,0.002,112520.0,112510.0,0.204353]
[1755870945153,0.002,112520.0,112510.0,0.11486]
[1755870945453,0.002,112520.0,112510.0,1.03489361]
[1755870946247,0.002,112520.0,112510.0,0.36486]
[1755870947051,0.002,112520.0,112510.0,0.11486]
[1755870947247,0.70220361,112520.0,112510.0,0.11486]
[1755870947452,0.99029361,112520.0,112510.0,0.05956]
[1755870947652,1.08847388,112520.0,112510.0,0.03931]
[1755870947962,1.08847388,112520.0,112510.0,0.09525]
[1755870948155,1.10914084,112520.0,112510.0,0.03931]
[1755870948959,1.11014084,112520.0,112510.0,0.03931]
[1755870949753,1.11014084,112520.0,112510.0,0.0022]
[1755870949956,1.55885084,112520.0,112500.0,4e-05]
[1755870950256,0.74029361,112510.0,112500.0,4e-05]
[1755870950455,0.07026,112510.0,112500.0,4e-05]
[1755870950652,0.17102238,112510.0,112500.0,4e-05]
[1755870950852,0.84105599,112510.0,112500.0,4e-05]
[1755870951053,0.17102238,112510.0,112500.0,4e-05]
[1755870951253,0.84105599,112510.0,112500.0,0.00304]
[1755870951755,0.84205599,112510.0,112500.0,0.00304]
[1755870951955,2.00157599,112510.0,112490.0,0.0361]
[1755870952150,2.00157599,112510.0,112490.0,0.09204]
[1755870952151,0.73238361,112500.0,112490.0,0.09204]
[1755870952554,0.73238361,112500.0,112490.0,0.11455]
[1755870952949,1.17238361,112510.0,112490.0,0.0222]
[1755870953149,2.11119094,112510.0,112500.0,0.11455]
[1755870953351,2.24413372,112510.0,112500.0,0.0361]
[1755870953752,2.24413372,112510.0,112500.0,0.09204]
[1755870953753,1.33481372,112510.0,112500.0,0.09204]
[1755870953949,1.58820011,112510.0,112500.0,0.09204]
[1755870954154,1.58816011,112510.0,112500.0,0.11455]
[1755870954462,0.63298011,112510.0,112500.0,0.11455]
[1755870954660,0.52167733,112510.0,112500.0,0.11455]
[1755870955059,0.52167733,112510.0,112500.0,0.36455]
[1755870955263,0.02167733,112510.0,112500.0,1.12348431]
[1755870955964,0.02167733,112510.0,112500.0,1.12428431]
[1755870956159,0.02167733,112510.0,112500.0,0.4542507]
[1755870956458,0.02270482,112510.0,112500.0,1.12428431]
[1755870956663,0.002,112510.0,112500.0,1.12428431]
[1755870956962,0.002,112510.0,112500.0,0.4542507]
[1755870957159,0.002,112510.0,112500.0,0.36455]
[1755870957457,0.02270741,112510.0,112500.0,0.36455]
[1755870957662,0.04696741,112510.0,112500.0,0.11455]
[1755870957857,0.75509102,112510.0,112500.0,0.11455]
[1755870958257,1.00509102,112510.0,112500.0,0.0583]
[1755870958558,1.00509102,112510.0,112500.0,0.09204]
[1755870958761,1.00509102,112510.0,112500.0,0.0583]
[1755870959152,1.00509102,112510.0,112500.0,0.0361]
[1755870959663,0.06235,112500.0,112490.0,0.11455]
[1755870959865,0.75309102,112500.0,112490.0,0.11475]
[1755870960259,0.02070741,112500.0,112490.0,1.12449221]
[1755870960458,0.002,112510.0,112500.0,0.11455]
[1755870960759,0.002,112510.0,112500.0,1.03478361]
[1755870960960,0.0217848,112510.0,112500.0,0.36475]
[1755870961264,0.70062841,112510.0,112500.0,0.11475]
[1755870961560,0.71607841,112510.0,112500.0,0.11475]
[1755870961762,0.75716841,112510.0,112500.0,0.11475]
[1755870961957,1.00616841,112510.0,112500.0,0.0363]
[1755870962158,1.10051327,112510.0,112500.0,0.0002]
[1755870962459,0.20608392,112510.0,112500.0,0.11475]
[1755870962769,0.0480448,112510.0,112500.0,0.11475]
[1755870962959,0.0861348,112510.0,112500.0,0.11475]
[1755870963165,0.75616841,112510.0,112500.0,0.11475]
[1755870963367,0.81986267,112510.0,112500.0,0.0363]
[1755870963561,0.81986267,112510.0,112500.0,0.0002]
[1755870963562,1.07086267,112510.0,112500.0,0.0002]
[1755870963866,1.16273128,112510.0,112500.0,0.0002]
[1755870964062,1.16673128,112510.0,112500.0,0.0002]
[1755870964366,1.10503702,112510.0,112500.0,0.0002]
[1755870964763,1.66893273,112510.0,112500.0,0.0363]
[1755870964956,0.99889912,112510.0,112500.0,0.0363]
[1755870965155,1.41893273,112510.0,112500.0,0.09224]
[1755870965365,1.41893273,112510.0,112500.0,0.11475]
[1755870965564,0.74889912,112510.0,112500.0,0.11475]
[1755870965765,0.59168051,112510.0,112500.0,0.36475]
[1755870966164,0.60049051,112510.0,112500.0,0.36475]
[1755870966560,0.09168051,112510.0,112500.0,0.36475]
[1755870966757,0.10049051,112510.0,112500.0,0.36475]
[1755870967266,0.09168051,112510.0,112500.0,0.36475]
[1755870967570,0.0277848,112510.0,112500.0,1.12448361]
[1755870967765,0.0041348,112510.0,112500.0,1.12448361]
[1755870968062,0.06389571,112520.0,112510.0,0.1812421]
[1755870968266,0.06389571,112520.0,112510.0,0.78478361]
[1755870968469,0.06389571,112520.0,112510.0,0.11475]
[1755870968873,0.12063571,112520.0,112510.0,0.11475]
[1755870969767,0.72677361,112520.0,112510.0,0.11475]
[1755870970071,0.77286361,112520.0,112510.0,0.11475]
[1755870970271,0.06474,112520.0,112510.0,0.36475]
[1755870970466,0.03107,112520.0,112510.0,0.36475]
[1755870970668,0.005,112520.0,112510.0,1.12447561]
[1755870970863,0.06389571,112530.0,112520.0,0.11455]
[1755870971066,0.08696571,112530.0,112520.0,0.11475]
[1755870971374,0.08484571,112530.0,112520.0,0.11475]
[1755870971568,0.83809932,112530.0,112520.0,0.11475]
[1755870971977,0.16806571,112530.0,112520.0,0.11475]
[1755870972178,0.83809932,112530.0,112520.0,0.11475]
[1755870972373,0.16806571,112530.0,112520.0,0.11475]
[1755870972561,0.08696571,112530.0,112520.0,0.11475]
[1755870972872,0.06389571,112530.0,112520.0,0.36475]
[1755870973071,0.08484571,112530.0,112520.0,0.36475]
[1755870973268,0.83809932,112530.0,112520.0,0.36475]
[1755870973469,1.08809932,112530.0,112520.0,0.0585]
[1755870973672,1.02420361,112530.0,112520.0,0.0363]
[1755870973873,1.02720361,112530.0,112520.0,0.0363]
[1755870974175,1.03100361,112530.0,112520.0,0.0012]
[1755870974472,1.03020361,112530.0,112520.0,0.0012]
[1755870974776,1.53020361,112530.0,112520.0,0.09324]
[1755870974973,0.86017,112530.0,112520.0,0.0595]
[1755870975162,1.53020361,112530.0,112520.0,0.0595]
[1755870975367,0.61017,112530.0,112520.0,0.11575]
[1755870975567,0.57208,112530.0,112520.0,0.11575]
[1755870975775,0.82208,112530.0,112520.0,0.11575]
[1755870976276,1.59489932,112530.0,112520.0,0.0012]
[1755870976472,0.523129,112530.0,112520.0,0.0012]
[1755870976786,0.94316261,112530.0,112520.0,0.0012]
[1755870976970,0.17406571,112530.0,112520.0,0.0595]
[1755870977169,0.11017,112530.0,112520.0,0.3644]
[1755870977370,0.07208,112530.0,112520.0,0.3644]
[1755870977564,0.05113,112530.0,112520.0,0.3644]
[1755870977876,0.02695,112530.0,112520.0,0.3644]
[1755870978177,0.006,112530.0,112520.0,0.3644]
[1755870978377,0.06989571,112530.0,112520.0,0.4532842]
[1755870978581,0.06989571,112530.0,112520.0,0.4540842]
[1755870979078,0.13605493,112540.0,112530.0,0.0888763]
[1755870979271,0.07215922,112540.0,112530.0,0.87322991]
[1755870979475,0.06389571,112550.0,112540.0,0.2021884]
[1755870979671,0.06389571,112550.0,112540.0,0.11352]
[1755870979875,0.08694753,112560.0,112550.0,0.2021805]
[1755870980081,0.08694753,112560.0,112550.0,0.87241411]
[1755870980377,0.08694753,112560.0,112550.0,0.36352]
[1755870980975,0.78038622,112590.0,112560.0,0.09198]
[1755870981180,0.16955261,112590.0,112580.0,0.11332]
[1755870981382,0.89624622,112590.0,112560.0,0.75888611]
[1755870981682,0.09265,112580.0,112570.0,0.02134]
[1755870981873,0.11586,112580.0,112570.0,0.02134]
[1755870982877,0.1875815,112580.0,112540.0,0.10856372]
[1755870983079,0.1875815,112580.0,112570.0,0.02134]
[1755870983484,0.1875815,112580.0,112570.0,0.11332]
[1755870983682,0.1905815,112580.0,112570.0,0.11432]
[1755870984275,0.1905815,112580.0,112570.0,0.03808]
[1755870984472,0.86061511,112580.0,112570.0,0.03808]
[1755870984676,1.11141511,112580.0,112570.0,0.0012]
[1755870984880,1.21329541,112580.0,112570.0,0.0012]
[1755870985485,1.21529541,112580.0,112570.0,0.0012]
[1755870987978,1.21529541,112580.0,112550.0,0.05899]
[1755870988187,0.78589361,112560.0,112550.0,0.11332]
[1755870988382,0.0592,112570.0,112560.0,0.11332]
[1755870988677,0.0212,112570.0,112560.0,0.2021727]
[1755870988883,0.1925815,112580.0,112570.0,0.11332]
[1755870989082,0.0979215,112580.0,112570.0,0.11332]
[1755870989282,0.0767215,112580.0,112570.0,0.11332]
[1755870989591,0.1693715,112580.0,112570.0,0.11332]
[1755870989786,0.1693715,112580.0,112570.0,0.08033]
[1755870989787,0.86261511,112580.0,112570.0,0.08033]
[1755870990079,0.1905815,112580.0,112570.0,0.05842]
[1755870990280,0.11586,112570.0,112560.0,0.08033]
[1755870990477,0.11586,112560.0,112550.0,0.11432]
[1755870990679,0.78589361,112560.0,112550.0,0.05842]
[1755870991173,0.78589361,112560.0,112550.0,0.03708]
[1755870991379,0.78589361,112560.0,112550.0,0.03728]
[1755870991579,0.78589361,112560.0,112550.0,0.0002]
[1755870991779,0.78589361,112560.0,112550.0,0.0032]
[1755870991980,1.05743507,112560.0,112550.0,0.0032]
[1755870992687,1.05743507,112560.0,112550.0,0.00324]
[1755870992884,0.09466,112550.0,112540.0,0.01969932]
[1755870993078,0.09466,112550.0,112520.0,0.13352002]
[1755870993079,0.0212,112530.0,112520.0,0.13352002]
[1755870993274,0.11586,112530.0,112520.0,0.11161002]
[1755870993887,0.11586,112530.0,112520.0,0.13352002]
[1755870994475,0.02009559,112530.0,112520.0,0.39052002]
[1755870994681,0.06511409,112530.0,112520.0,1.06055363]
[1755870994881,0.13656409,112530.0,112520.0,0.39052002]
[1755870995078,0.04391409,112530.0,112520.0,0.47944432]
[1755870995685,0.06511409,112530.0,112520.0,0.47944432]
[1755870995890,0.09856409,112530.0,112520.0,0.39056002]
[1755870996081,0.06511409,112530.0,112520.0,0.48164432]
[1755870996280,0.04391409,112530.0,112520.0,0.48164432]
[1755870997186,0.04391409,112530.0,112520.0,0.37085002]
[1755870997890,0.02009559,112530.0,112520.0,1.13056803]
[1755870998086,0.03345,112560.0,112540.0,0.09141]
[1755870998287,0.73098641,112560.0,112540.0,0.1802786]
[1755870998491,0.1156028,112560.0,112550.0,0.09141]
[1755870999097,0.09265,112560.0,112550.0,0.34141]
[1755870999592,0.09365,112560.0,112550.0,0.34141]
[1755870999890,0.11689614,112560.0,112550.0,0.34141]
[1755871000188,0.07145,112550.0,112540.0,0.03708]
[1755871000391,0.76168361,112550.0,112540.0,0.03708]
[1755871000582,0.76168361,112550.0,112540.0,0.07007]
[1755871000790,0.09165,112550.0,112540.0,0.09141]
[1755871000981,0.05465,112540.0,112530.0,0.05842]
[1755871001186,0.05465,112540.0,112530.0,0.09141]
[1755871001387,0.72468361,112540.0,112530.0,0.09161]
[1755871001884,0.05465,112540.0,112530.0,0.05862]
[1755871002089,0.05465,112540.0,112530.0,0.03728]
[1755871002090,0.72468361,112540.0,112530.0,0.03728]
[1755871002291,0.76268361,112540.0,112530.0,0.03728]
[1755871002484,1.01268361,112540.0,112530.0,0.0012]
[1755871003084,1.01168361,112540.0,112530.0,0.0012]
[1755871003796,1.01468361,112540.0,112530.0,0.0022]
[1755871005087,0.34465,112540.0,112530.0,0.0022]
[1755871005297,1.01468361,112540.0,112530.0,0.0012]
[1755871005798,1.01468361,112540.0,112530.0,0.00124]
[1755871006389,0.05765,112540.0,112530.0,1.01268361]
[1755871006698,0.09565,112540.0,112530.0,0.4315267]
[1755871006893,0.0242,112540.0,112530.0,0.34265]
[1755871007092,0.05854,112540.0,112530.0,0.34265]
[1755871007294,0.09659,112540.0,112530.0,0.34265]
[1755871007492,0.09659,112540.0,112530.0,0.09265]
[1755871007493,0.76662361,112540.0,112530.0,0.09265]
[1755871007798,0.76662361,112540.0,112530.0,0.34219]
[1755871008001,0.09659,112540.0,112530.0,0.4310667]
[1755871008195,0.06225,112540.0,112530.0,0.34219]
[1755871008500,0.09659,112540.0,112530.0,0.34219]
[1755871008699,0.0242,112540.0,112530.0,0.4310667]
[1755871008900,0.003,112540.0,112530.0,0.4310667]
[1755871009203,0.003,112540.0,112530.0,1.10190031]
[1755871010498,0.02206109,112540.0,112530.0,1.10190031]
[1755871011396,0.02206109,112540.0,112530.0,1.10110031]
[1755871011599,0.07753109,112540.0,112530.0,1.91714361]
[1755871011796,0.04319109,112540.0,112530.0,2.00602031]
[1755871012002,0.04319109,112540.0,112530.0,1.24711]
[1755871012304,0.07753109,112540.0,112530.0,1.01222361]
[1755871012494,0.07753109,112540.0,112530.0,1.24707]
[1755871012896,0.02206109,112540.0,112530.0,1.24707]
[1755871013796,0.02206109,112540.0,112530.0,2.00598031]
[1755871014606,0.02206109,112540.0,112530.0,1.91710361]
[1755871014795,0.11558109,112540.0,112530.0,0.99683]
[1755871014996,0.02206109,112540.0,112530.0,1.0857067]
[1755871015194,0.02206109,112540.0,112530.0,1.75574031]
[1755871015503,0.07753109,112540.0,112530.0,1.66682361]
[1755871015805,0.7856147,112540.0,112530.0,0.09219]
[1755871016198,0.11558109,112540.0,112530.0,0.09219]
[1755871016403,0.7856147,112540.0,112530.0,0.03832]
[1755871016906,1.0364147,112540.0,112530.0,0.00124]
[1755871017205,0.36638109,112540.0,112530.0,0.00124]
[1755871017402,1.0356147,112540.0,112530.0,0.00124]
[1755871017606,1.0356147,112540.0,112530.0,0.09243]
[1755871017806,0.36558109,112540.0,112530.0,0.09243]
[1755871018702,1.0356147,112540.0,112530.0,0.09243]
[1755871018903,0.11558109,112540.0,112530.0,0.09243]
[1755871020405,0.02206109,112540.0,112530.0,1.01246361]
[1755871020710,0.04319109,112540.0,112530.0,0.34243]
[1755871021014,0.02206109,112540.0,112530.0,1.01246361]
[1755871021605,0.02206109,112540.0,112530.0,0.34243]
[1755871021809,0.11558109,112540.0,112530.0,0.99647]
[1755871022114,0.04319109,112540.0,112530.0,0.99647]
[1755871022306,0.02206109,112540.0,112530.0,0.99647]
[1755871022506,0.07753109,112540.0,112530.0,0.99647]
[1755871022708,0.11558109,112540.0,112530.0,0.99747]
[1755871023006,0.02206109,112540.0,112530.0,1.75638031]
[1755871023305,0.02206109,112540.0,112530.0,1.66650361]
[1755871023503,0.04119109,112540.0,112530.0,1.66750361]
[1755871023706,0.11358109,112540.0,112530.0,0.99735]
[1755871023911,0.11358109,112540.0,112530.0,0.99635]
[1755871024111,0.11458109,112540.0,112530.0,0.99735]
[1755871024512,0.11458109,112540.0,112530.0,0.99731]
[1755871024711,0.08024109,112540.0,112530.0,0.99731]
[1755871024913,0.11458109,112540.0,112530.0,0.99731]
[1755871025714,0.11358109,112540.0,112530.0,0.99831]
[1755871025908,0.11358109,112540.0,112530.0,0.09443]
[1755871026112,0.7836147,112540.0,112530.0,0.0599]
[1755871026304,0.08024109,112540.0,112530.0,0.09343]
[1755871026511,0.04219109,112540.0,112530.0,0.09243]
[1755871026812,0.07653109,112540.0,112530.0,0.09243]
[1755871027203,0.07653109,112540.0,112530.0,0.09343]
[1755871027407,0.04219109,112540.0,112530.0,1.66710361]
[1755871027610,0.02106109,112540.0,112530.0,2.00598031]
[1755871028010,0.02106109,112540.0,112530.0,1.91710361]
[1755871028211,0.07653109,112540.0,112530.0,1.24707]
[1755871028412,0.11458109,112540.0,112530.0,1.24695]
[1755871028811,0.04219109,112540.0,112530.0,1.24695]
[1755871029006,0.02106109,112540.0,112530.0,1.91698361]
[1755871029413,0.02106109,112540.0,112530.0,1.24695]
[1755871029915,0.02106109,112540.0,112530.0,2.00586031]
[1755871030512,0.02106109,112540.0,112530.0,1.91698361]
[1755871030714,0.02106109,112540.0,112530.0,2.00586031]
[1755871032214,0.02106109,112540.0,112530.0,1.3358267]
[1755871032418,0.02106109,112540.0,112530.0,1.91698361]
[1755871032818,0.02106109,112540.0,112530.0,0.34343]
[1755871033119,0.11458109,112540.0,112530.0,1.24647]
[1755871033420,0.13928109,112540.0,112530.0,1.02106]
[1755871035210,0.13928109,112540.0,112530.0,0.11802]
[1755871035416,1.0601147,112540.0,112530.0,0.06324]
[1755871035613,1.0601147,112540.0,112530.0,0.00224]
[1755871035817,1.0593147,112540.0,112530.0,0.00224]
[1755871036516,0.10494109,112540.0,112530.0,0.11802]
[1755871036815,0.10494109,112540.0,112530.0,0.99615]
[1755871036816,0.08024109,112540.0,112530.0,0.99615]
[1755871037118,0.11458109,112540.0,112530.0,0.99615]
[1755871038111,0.7846147,112540.0,112530.0,0.99615]
[1755871038511,0.08024109,112540.0,112530.0,0.99615]
[1755871038821,0.07628109,112540.0,112530.0,0.99615]
[1755871039010,0.04219109,112540.0,112530.0,0.99615]
[1755871039210,0.02106109,112540.0,112530.0,1.91618361]
[1755871039810,0.04282109,112540.0,112530.0,1.24615]
[1755871040015,0.07691109,112540.0,112530.0,1.24615]
[1755871040621,0.02106109,112540.0,112530.0,1.24615]
[1755871040925,0.11535109,112540.0,112530.0,1.24615]
[1755871041224,0.11535109,112540.0,112530.0,1.24587]
[1755871041422,0.02106109,112540.0,112530.0,1.24587]
[1755871041623,0.02106109,112540.0,112530.0,1.91590361]
[1755871041816,0.02106109,112540.0,112530.0,1.24587]
[1755871042016,0.07691109,112540.0,112530.0,1.24587]
[1755871042219,0.07691109,112540.0,112530.0,0.34343]
[1755871042220,0.11535109,112540.0,112530.0,0.34343]
[1755871042524,0.11535109,112540.0,112530.0,1.24579]
[1755871042717,0.11535109,112540.0,112530.0,0.34343]
[1755871042918,0.11535109,112540.0,112530.0,0.99571]
[1755871043520,0.02106109,112540.0,112530.0,1.75462161]
[1755871043723,0.04282109,112540.0,112530.0,0.09343]
[1755871043917,0.11535109,112540.0,112530.0,0.09343]
[1755871044221,0.04282109,112540.0,112530.0,0.09343]
[1755871044415,0.02106109,112540.0,112530.0,0.09343]
[1755871045521,0.02106109,112540.0,112530.0,1.01246361]
[1755871045722,0.07691109,112540.0,112530.0,0.34243]
[1755871045922,0.07691109,112540.0,112530.0,0.34343]
[1755871046524,0.11535109,112540.0,112530.0,0.09343]
[1755871046723,0.02106109,112540.0,112530.0,0.09343]
[1755871047026,0.02106109,112540.0,112530.0,0.99539]
[1755871047525,0.01906109,112540.0,112530.0,1.66442361]
[1755871047726,0.02306109,112540.0,112530.0,0.92545]
[1755871048027,0.02306109,112540.0,112530.0,1.59544361]
[1755871048226,0.02306109,112540.0,112530.0,1.66498361]
[1755871049020,0.02306109,112540.0,112530.0,1.66398361]
[1755871049319,0.07691109,112540.0,112530.0,0.11752]
[1755871049523,0.02106109,112540.0,112530.0,1.01924]
[1755871050024,0.02106109,112540.0,112530.0,1.68927361]
[1755871050324,0.02106109,112540.0,112530.0,2.04820335]
[1755871051325,0.02106109,112540.0,112530.0,1.05760545]
[1755871051730,0.02106109,112540.0,112530.0,1.95912545]
[1755871051731,0.04282109,112540.0,112530.0,1.95912545]
[1755871051922,0.11535109,112540.0,112530.0,1.28909184]
[1755871053028,0.11535109,112540.0,112530.0,1.28905184]
[1755871053232,0.08126109,112540.0,112530.0,0.38757184]
[1755871053431,0.11535109,112540.0,112530.0,1.28897184]
[1755871053635,0.02106109,112540.0,112530.0,1.28897184]
[1755871054132,0.02106109,112540.0,112530.0,1.95900545]
[1755871054730,0.07691109,112540.0,112530.0,1.28897184]
[1755871054929,0.02106109,112540.0,112530.0,1.28897184]
[1755871055132,0.02106109,112540.0,112530.0,1.95900545]
[1755871055628,0.04282109,112540.0,112530.0,1.95900545]
[1755871056225,0.02106109,112540.0,112530.0,1.95900545]
[1755871056630,0.02106109,112540.0,112530.0,2.04788335]
[1755871057230,0.04282109,112540.0,112530.0,1.95864545]
[1755871057429,0.07691109,112540.0,112530.0,1.28861184]
[1755871057729,1.0594147,112540.0,112530.0,0.9848]
[1755871057929,1.0594147,112540.0,112530.0,1.01856]
[1755871058130,1.0823547,112540.0,112530.0,1.04124]
[1755871058429,1.0973047,112540.0,112530.0,0.0162]
[1755871058727,1.0965047,112540.0,112530.0,0.15588]
[1755871058934,1.0973047,112540.0,112530.0,0.07647]
[1755871059132,1.0018347,112540.0,112520.0,0.0585]
[1755871059430,1.03806361,112530.0,112520.0,4e-05]
[1755871059628,1.0571247,112530.0,112520.0,4e-05]
[1755871059830,1.65185146,112530.0,112520.0,4e-05]
[1755871060731,1.65185146,112530.0,112520.0,0.00204]
[1755871061031,1.65885146,112530.0,112520.0,0.003]
[1755871061433,0.11723,112510.0,112500.0,0.13488242]
[1755871061628,0.8063247,112510.0,112500.0,0.05547242]
[1755871061833,0.8063247,112510.0,112500.0,0.01969242]
[1755871062129,0.8063247,112510.0,112500.0,0.07642242]
[1755871062335,0.8063247,112510.0,112500.0,0.01969242]
[1755871062525,0.8063247,112510.0,112500.0,0.01989242]
[1755871062728,0.8063247,112510.0,112500.0,0.07662242]
[1755871063022,0.8103247,112510.0,112500.0,0.07964242]
[1755871063231,0.8485047,112510.0,112500.0,0.15104242]
[1755871063731,0.8485047,112510.0,112500.0,0.11728242]
[1755871064033,0.8485047,112510.0,112500.0,0.15104242]
[1755871064423,0.8495047,112510.0,112500.0,0.15104242]
[1755871064733,0.8495047,112510.0,112500.0,0.07163242]
[1755871065036,0.8495047,112510.0,112500.0,0.12836242]
[1755871065226,0.8495047,112510.0,112500.0,0.09460242]
[1755871066125,0.91900947,112510.0,112500.0,0.02089242]
[1755871066929,0.15541,112480.0,112470.0,0.06027]
[1755871067129,0.11409,112470.0,112460.0,0.05652]
[1755871067335,0.78412361,112470.0,112460.0,0.05652]
[1755871067928,0.11409,112450.0,112430.0,0.01982902]
[1755871068125,0.78412361,112440.0,112430.0,0.07323902]
[1755871068324,0.07911,112440.0,112430.0,0.05341]
[1755871068626,0.12857059,112440.0,112430.0,0.05341]
[1755871068933,0.05745,112440.0,112430.0,0.05341]
[1755871069134,0.03619,112440.0,112430.0,0.09551]
[1755871069434,0.07911,112450.0,112440.0,0.09651]
[1755871069733,0.10244323,112450.0,112440.0,0.09651]
[1755871070134,0.10244323,112450.0,112440.0,0.34651]
[1755871070335,0.08078323,112450.0,112440.0,0.34671]
[1755871070530,0.11576323,112450.0,112440.0,0.34671]
[1755871070736,0.13742323,112450.0,112440.0,0.32644]
[1755871070936,0.10244323,112450.0,112440.0,0.34671]
[1755871071129,0.10144323,112450.0,112440.0,0.34671]
[1755871071328,0.10144323,112450.0,112440.0,0.34771]
[1755871071533,0.12341824,112450.0,112440.0,0.34771]
[1755871071936,0.10375824,112450.0,112440.0,0.34771]
[1755871072435,0.04730824,112450.0,112440.0,1.01774361]
[1755871072633,0.02397501,112450.0,112440.0,1.01854361]
[1755871072836,0.02397501,112450.0,112440.0,1.02154361]
[1755871073034,0.09509639,112450.0,112440.0,1.02154361]
[1755871073236,0.02397501,112450.0,112440.0,1.02154361]
[1755871073544,0.13806501,112450.0,112440.0,0.02503]
[1755871073737,0.80809862,112450.0,112440.0,0.07944]
[1755871074035,0.13806501,112450.0,112440.0,0.07944]
[1755871074234,0.13806501,112450.0,112440.0,0.10071]
[1755871074838,0.13806501,112450.0,112440.0,0.32944]
[1755871075338,0.80809862,112450.0,112440.0,0.27596]
[1755871075639,0.13806501,112450.0,112440.0,0.27596]
[1755871075855,0.80809862,112450.0,112440.0,0.30761]
[1755871076037,0.80809862,112450.0,112440.0,0.32944]
[1755871076239,0.13806501,112450.0,112440.0,0.30761]
[1755871076540,0.13806501,112450.0,112440.0,0.27596]
[1755871076734,1.05809862,112450.0,112440.0,0.0032]
[1755871077136,0.38806501,112450.0,112440.0,0.0032]
[1755871077340,0.38806501,112450.0,112440.0,0.05761]
[1755871077535,0.45764243,112450.0,112440.0,0.05761]
[1755871077738,0.45764243,112450.0,112440.0,0.0032]
[1755871078130,1.12767604,112450.0,112440.0,0.0032]
[1755871078735,1.12767604,112450.0,112440.0,0.0002]
[1755871078931,1.12667604,112450.0,112440.0,0.0002]
[1755871079638,1.12667604,112450.0,112440.0,0.03185]
[1755871079840,0.45664243,112450.0,112440.0,0.0002]
[1755871080345,0.42166243,112450.0,112440.0,0.09771]
[1755871080641,1.12667604,112450.0,112440.0,0.02203]
[1755871080837,1.12667604,112450.0,112440.0,0.07644]
[1755871081340,0.42166243,112450.0,112440.0,0.07644]
[1755871081544,0.45664243,112450.0,112440.0,0.07644]
[1755871083232,0.12874243,112450.0,112440.0,1.01854361]
[1755871084539,0.12874243,112450.0,112440.0,1.01774361]
[1755871084737,0.02297501,112450.0,112440.0,1.01854361]
[1755871084938,0.10565656,112480.0,112460.0,0.01468]
[1755871085138,0.03619,112500.0,112480.0,0.0008]
[1755871085338,0.12030784,112510.0,112500.0,0.06566]
[1755871085339,0.09985784,112510.0,112500.0,0.06566]
[1755871085539,0.16480045,112510.0,112500.0,0.06586]
[1755871085734,0.18646045,112510.0,112500.0,0.04459]
[1755871086248,0.18646045,112510.0,112500.0,0.02203]
[1755871086443,0.43646045,112510.0,112500.0,0.0002]
[1755871086637,1.10829406,112510.0,112500.0,0.0002]
[1755871087148,1.13219447,112510.0,112500.0,0.0002]
[1755871087347,0.11409,112490.0,112480.0,0.02183]
[1755871087646,0.11609,112480.0,112470.0,0.04491]
[1755871087842,0.03819,112480.0,112470.0,0.73621361]
[1755871088444,0.07117,112490.0,112470.0,0.68423361]
[1755871088752,0.03619,112500.0,112490.0,0.06618]
[1755871089135,0.03619,112500.0,112490.0,0.98621361]
[1755871089441,0.11309,112480.0,112470.0,0.02183]
[1755871089744,0.03719,112480.0,112470.0,0.06978]
[1755871089950,0.03719,112480.0,112470.0,0.74181361]
[1755871090544,0.001,112480.0,112470.0,0.74181361]
[1755871090853,0.001,112480.0,112470.0,0.07198]
[1755871090854,0.03719,112480.0,112470.0,0.07198]
[1755871091349,0.09343,112480.0,112470.0,0.07298]
[1755871091551,0.05745,112480.0,112470.0,0.06898]
[1755871091746,0.09243,112480.0,112470.0,0.06898]
[1755871092452,0.09243,112480.0,112470.0,0.04771]
[1755871092453,0.11409,112480.0,112470.0,0.04771]
[1755871092652,0.78512361,112480.0,112470.0,0.0022]
[1755871092952,0.11509,112480.0,112470.0,0.0022]
[1755871093652,0.78512361,112480.0,112470.0,0.02788]